fUSD/lending_fUSD_20250720
["ID","MTS","AMOUNT","RATE_DAILY","PERIOD"]
[373486499,1753020647458,-480.0,0.00019287,2]
[373486500,1753020647468,-480.0,0.00019287,2]
[373486501,1753020647477,-480.0,0.00019287,2]
[373486502,1753020647486,-480.0,0.00019287,2]
[373486503,1753020647495,-480.0,0.00019287,2]
[373486504,1753020647504,-480.0,0.00019287,2]
[373486505,1753020647513,-480.0,0.00019287,2]
[373486506,1753020647523,-480.0,0.00019287,2]
[373486508,1753020647534,-480.0,0.00019287,2]
[373486510,1753020647544,-480.0,0.00019287,2]
[373486512,1753020647554,-480.0,0.00019287,2]
[373486514,1753020647563,-1235.45,0.00019287,2]
[373486516,1753020647572,-480.0,0.00019287,2]
[373486518,1753020647581,-2183.24,0.00019287,2]
[373486520,1753020647591,-480.0,0.00019287,2]
[373486522,1753020647600,-480.0,0.00019287,2]
[373486524,1753020647609,-480.0,0.00019287,2]
[373486526,1753020647619,-773.3,0.00019287,2]
[373486528,1753020647629,-480.0,0.00019287,2]
[373486530,1753020647638,-480.0,0.00019287,2]
[373486532,1753020647647,-480.0,0.00019287,2]
[373486534,1753020647656,-504.68,0.00019287,2]
[373486536,1753020647665,-754.35,0.00019287,2]
[373486538,1753020647674,-480.0,0.00019287,2]
[373486540,1753020647683,-480.0,0.00019287,2]
[373486542,1753020647693,-480.0,0.00019287,2]
[373486544,1753020647702,-498.96,0.00019287,2]
[373486546,1753020647711,-480.0,0.00019287,2]
[373486548,1753020647720,-4403.96,0.00019287,2]
[373486550,1753020647729,-480.0,0.00019287,2]
[373486552,1753020647738,-480.0,0.00019287,2]
[373486554,1753020647751,-480.0,0.00019287,2]
[373486556,1753020647764,-434.2,0.00019287,2]
[373486558,1753020647773,-480.0,0.00019287,2]
[373486560,1753020647782,-480.0,0.00019287,2]
[373486562,1753020647791,-480.0,0.00019287,2]
[373486564,1753020647801,-480.0,0.00019287,2]
[373486565,1753020647810,-480.0,0.00019287,2]
[373486567,1753020647820,-2014.63,0.00019287,2]
[373486569,1753020647830,-480.0,0.00019287,2]
[373486571,1753020647840,-480.0,0.00019287,2]
[373486573,1753020647849,-480.0,0.00019287,2]
[373486575,1753020647858,-480.0,0.00019287,2]
[373486577,1753020647867,-480.0,0.00019287,2]
[373486578,1753020647876,-480.0,0.00019287,2]
[373486580,1753020647886,-400.0,0.00019287,2]
[373486582,1753020647895,-744.69,0.00019287,2]
[373486584,1753020647905,-480.0,0.00019287,2]
[373486586,1753020647915,-516.66,0.00019287,2]
[373486588,1753020647925,-185.92,0.00019287,2]
[373486590,1753020647934,-480.0,0.00019287,2]
[373486592,1753020647943,-480.0,0.00019287,2]
[373486594,1753020647952,-480.0,0.00019287,2]
[373486596,1753020647961,-480.0,0.00019287,2]
[373486598,1753020647970,-480.0,0.00019287,2]
[373486600,1753020647980,-400.0,0.00019287,2]
[373486602,1753020647990,-774.77,0.00019287,2]
[373486603,1753020647999,-906.53,0.00019287,2]
[373486605,1753020648009,-2183.59437246,0.00019287,2]
[373486639,1753020648331,-609.66,0.00019178,2]
[373486641,1753020648341,-480.0,0.00019178,2]
[373486643,1753020648351,-480.0,0.00019178,2]
[373486645,1753020648360,-701.18866787,0.00019178,2]
[373486659,1753020648487,-827.94133213,0.00019178,2]
[373486661,1753020648496,-263.47473539,0.00019178,2]
[373486663,1753020648508,-27.34123836,0.00019178,2]
[373486665,1753020648517,-1231.54562754,0.00019287,2]
[373486667,1753020648527,-480.0,0.00019287,2]
[373486669,1753020648536,-8.95158843,0.00019287,2]
[373486672,1753020648557,-471.04841157,0.00019287,2]
[373486674,1753020648566,-606.91,0.00019287,2]
[373486676,1753020648575,-480.0,0.00019287,2]
[373486678,1753020648585,-973.73,0.00019287,2]
[373486680,1753020648595,-480.0,0.00019287,2]
[373486682,1753020648604,-18.26713998,0.00019287,2]
[373486706,1753020648839,500.0,8.2e-07,120]
[373486734,1753020649152,-592.5,0.00019173,2]
[373486735,1753020649182,-22.29166787,0.00019173,2]
[373486736,1753020649203,-85.20833213,0.00019173,2]
[373486737,1753020649212,-480.0,0.00019178,2]
[373486738,1753020649222,-480.0,0.00019178,2]
[373486740,1753020649231,-360.0,0.00019178,2]
[373486742,1753020649240,-480.0,0.00019178,2]
[373486744,1753020649250,-480.0,0.00019178,2]
[373486746,1753020649259,-461.73286002,0.00019287,2]
[373486748,1753020649269,-480.0,0.00019287,2]
[373486750,1753020649278,-784.13,0.00019287,2]
[373486752,1753020649288,-68.96140141,0.00019287,2]
[373486755,1753020649308,-411.03859859,0.00019287,2]
[373486757,1753020649318,-480.0,0.00019287,2]
[373486759,1753020649327,-277.86140131,0.00019287,2]
[373486762,1753020649351,-34.19161689,0.00019287,2]
[373487121,1753020652951,500.0,8.2e-07,120]
[373488771,1753020670538,500.0,8.2e-07,120]
[373489460,1753020695560,500.0,8.2e-07,120]
[373489498,1753020765992,500.0,8.2e-07,120]
[373489500,1753020766778,10000.0,0.0002301,30]
[373489507,1753020773441,500.0,8.2e-07,120]
[373489512,1753020781110,5032.0,0.0002301,30]
[373489569,1753020968648,-211.10711252,0.00017738,2]
[373489578,1753021032340,500.0,8.2e-07,120]
[373489582,1753021044876,500.0,8.2e-07,120]
[373489585,1753021082007,500.0,8.2e-07,120]
[373489587,1753021087279,-216.58288748,0.00017637,2]
[373489588,1753021090167,500.0,8.2e-07,120]
[373489591,1753021096764,500.0,8.2e-07,120]
[373489592,1753021105546,500.0,8.2e-07,120]
[373489594,1753021120791,300.0,8.2e-07,120]
[373489596,1753021132064,300.0,8.2e-07,120]
[373489598,1753021142795,1347.7,0.0003013,120]
[373489630,1753021263794,168.2,0.0003013,120]
[373489650,1753021370259,-465.60234832,0.00017225,2]
[373489652,1753021374219,-194.39765168,0.00017225,2]
[373489655,1753021377843,-300.02316802,0.00017225,2]
[373489656,1753021380809,-446.41497269,0.00017225,2]
[373489664,1753021398027,192.77,0.0002625,120]
[373489679,1753021438719,155.71,0.00013699,2]
[373489681,1753021453739,381.2880592,0.00030136,120]
[373489709,1753021584322,154.07,1e-08,2]
[373489730,1753021625483,-1170.863049,0.00017067,2]
[373489731,1753021625505,-233.65805502,0.00017153,2]
[373489758,1753021694989,1339.06339092,0.0001439,2]
[373489765,1753021711909,200.27992195,0.0003,120]
[373489776,1753021726608,29392.0,0.0003,120]
[373489782,1753021746207,-5458.38717751,0.00016981,2]
[373489783,1753021748157,-3285.01856184,0.00016981,2]
[373489784,1753021748179,-166.66666667,0.00016981,2]
[373489785,1753021748202,-300.0,0.00017067,2]
[373489786,1753021748224,-300.0,0.00017082,2]
[373489787,1753021748246,-1000.0,0.00017082,2]
[373489788,1753021748268,-742.51908668,0.0001711,2]
[373489789,1753021748290,-300.0,0.00017115,2]
[373489790,1753021748311,-16.34194498,0.00017153,2]
[373489791,1753021748331,-1200.0,0.00017181,2]
[373489792,1753021748356,-1200.0,0.0001721,2]
[373489793,1753021748379,-512.0,0.00017234,2]
[373489794,1753021748399,-300.0,0.00017282,2]
[373489795,1753021748420,-1000.0,0.00017283,2]
[373489796,1753021748440,-862.89,0.00017334,2]
[373489797,1753021748460,-190.0,0.00017334,7]
[373489798,1753021748481,-300.0,0.00017401,2]
[373489799,1753021748501,-600.0,0.00017402,2]
[373489800,1753021748521,-600.0,0.00017402,2]
[373489801,1753021748541,-600.0,0.00017402,2]
[373489802,1753021748561,-600.0,0.00017402,2]
[373489803,1753021748581,-600.0,0.00017402,2]
[373489804,1753021748603,-151.0,0.00017402,2]
[373489805,1753021748625,-600.0,0.00017402,2]
[373489806,1753021748648,-151.0,0.00017402,2]
[373489807,1753021748668,-600.0,0.00017402,2]
[373489808,1753021748690,-151.0,0.00017402,2]
[373489809,1753021748710,-600.0,0.00017402,2]
[373489810,1753021748733,-151.0,0.00017402,2]
[373489811,1753021748754,-600.0,0.00017402,2]
[373489812,1753021748775,-151.0,0.00017402,2]
[373489813,1753021748795,-600.0,0.00017402,2]
[373489814,1753021748817,-151.0,0.00017402,2]
[373489815,1753021748837,-600.0,0.00017402,2]
[373489816,1753021748859,-600.0,0.00017402,2]
[373489817,1753021748881,-151.0,0.00017402,2]
[373489818,1753021748902,-600.0,0.00017402,2]
[373489819,1753021748924,-151.0,0.00017402,2]
[373489820,1753021748944,-600.0,0.00017402,2]
[373489821,1753021748967,-151.0,0.00017402,2]
[373489822,1753021748989,-600.0,0.00017402,2]
[373489823,1753021749011,-151.0,0.00017402,2]
[373489824,1753021749035,-500.0,0.00017402,2]
[373489825,1753021749059,-151.0,0.00017402,2]
[373489826,1753021749080,-500.0,0.00017402,2]
[373489827,1753021749102,-600.0,0.00017402,2]
[373489828,1753021749123,-151.0,0.00017402,2]
[373489829,1753021749145,-151.0,0.00017402,2]
[373489830,1753021749166,-500.0,0.00017402,2]
[373489831,1753021749189,-600.0,0.00017402,2]
[373489832,1753021749211,-151.0,0.00017402,2]
[373489833,1753021749233,-500.0,0.00017402,2]
[373489834,1753021749254,-600.0,0.00017402,2]
[373489835,1753021749279,-500.0,0.00017402,2]
[373489836,1753021749301,-151.0,0.00017402,2]
[373489837,1753021749322,-218.05230015,0.00017402,2]
[373489838,1753021749344,-500.0,0.00017402,2]
[373489839,1753021749366,-249.25903314,0.00017402,2]
[373489840,1753021749388,-500.0,0.00017402,2]
[373489841,1753021749411,-500.0,0.00017402,2]
[373489842,1753021749435,-500.0,0.00017402,2]
[373489843,1753021749457,-500.0,0.00017402,2]
[373489844,1753021749479,-500.0,0.00017402,2]
[373489845,1753021749501,-500.0,0.00017402,2]
[373489846,1753021749523,-500.0,0.00017402,2]
[373489847,1753021749545,-500.0,0.00017402,2]
[373489848,1753021749566,-500.0,0.00017402,2]
[373489849,1753021749588,-500.0,0.00017402,2]
[373489850,1753021749611,-500.0,0.00017402,2]
[373489851,1753021749632,-500.0,0.00017402,2]
[373489852,1753021749653,-500.0,0.00017402,2]
[373489853,1753021749678,-500.0,0.00017402,2]
[373489854,1753021749700,-500.0,0.00017402,2]
[373489855,1753021749725,-500.0,0.00017402,2]
[373489856,1753021749747,-500.0,0.00017402,2]
[373489857,1753021749770,-500.0,0.00017402,2]
[373489858,1753021749791,-500.0,0.00017402,2]
[373489859,1753021749813,-500.0,0.00017402,2]
[373489860,1753021749833,-500.0,0.00017402,2]
[373489861,1753021749856,-500.0,0.00017402,2]
[373489862,1753021749879,-500.0,0.00017402,2]
[373489863,1753021749899,-500.0,0.00017402,2]
[373489864,1753021749919,-500.0,0.00017402,2]
[373489865,1753021749940,-500.0,0.00017402,2]
[373489866,1753021749961,-500.0,0.00017402,2]
[373489867,1753021749981,-420.5643678,0.00017402,2]
[373489868,1753021756085,-1000.0,0.00017286,2]
[373489869,1753021756107,-79.4356322,0.00017402,2]
[373489870,1753021756131,-500.0,0.00017402,2]
[373489871,1753021756153,-500.0,0.00017402,2]
[373489872,1753021756177,-500.0,0.00017402,2]
[373489873,1753021756199,-500.0,0.00017402,2]
[373489874,1753021756220,-500.0,0.00017402,2]
[373489875,1753021756242,-500.0,0.00017402,2]
[373489876,1753021756264,-835.88722464,0.00017416,2]
[373489881,1753021759159,-4473.80277536,0.00017416,2]
[373489882,1753021759182,-500.0,0.00017449,2]
[373489883,1753021759207,-318.0,0.000175,2]
[373489884,1753021759233,-192.77,0.000175,2]
[373489885,1753021759261,-150.0,0.00017564,2]
[373489886,1753021759283,-666.0,0.00017572,2]
[373489887,1753021759304,-206.77445135,0.00017637,2]
[373489888,1753021759325,-206.77445135,0.00017637,2]
[373489889,1753021759348,-151.0,0.00017665,2]
[373489890,1753021759370,-300.0,0.00017679,2]
[373489891,1753021759393,-745.93,0.0001768,2]
[373489892,1753021759414,-794.62,0.0001769,2]
[373489893,1753021759438,-206.77445135,0.00017727,2]
[373489894,1753021759460,-2293.24,0.00017783,2]
[373489895,1753021759482,-742.51908666,0.00017815,2]
[373489896,1753021759505,-1527.82670341,0.00017873,2]
[373489897,1753021759892,-10600.203268,0.00017895,2]
[373489899,1753021770094,-495.31983304,0.00017234,2]
[373489902,1753021782080,480.0,0.00030136,120]
[373489909,1753021809906,-506886.6203038,0.00034831,30]
[373489910,1753021809968,-5000.0,0.00034831,30]
[373489911,1753021810030,-34354.03,0.00034831,30]
[373489912,1753021810096,-114864.70230489,0.00034831,30]
[373489913,1753021810156,-268.20992567,0.00034831,30]
[373489914,1753021810215,-160.75960558,0.00034831,30]
[373489915,1753021810275,-182250.30922185,0.00034831,30]
[373489916,1753021810339,-20000.0,0.00034831,30]
[373489917,1753021810398,-200000.0,0.00034831,30]
[373489918,1753021810458,-1000.0,0.00034831,30]
[373489919,1753021810516,-6646.30946,0.00034831,30]
[373489920,1753021810575,-3274.36466598,0.00034831,30]
[373489921,1753021810633,-2441.85319361,0.00034831,30]
[373489922,1753021810694,-1932463.89452499,0.00034831,30]
[373489923,1753021810753,-2445.77611909,0.00034831,30]
[373489924,1753021810811,-2855.10087484,0.00034831,30]
[373489925,1753021810871,-985088.0697997,0.00034831,30]
[373489926,1753021816621,-642.70791486,0.00034831,30]
[373489927,1753021816691,-2293.82180471,0.00034831,30]
[373489928,1753021816760,-2500.0,0.00034831,30]
[373489929,1753021816827,-422.54917364,0.00034831,30]
[373489930,1753021816895,-3172.48585015,0.00034831,30]
[373489931,1753021816962,-170.66108093,0.00034831,30]
[373489932,1753021817035,-581.30345426,0.00034831,30]
[373489933,1753021817108,-2663.7631206,0.00034831,30]
[373489934,1753021817178,-3167.10223752,0.00034831,30]
[373489935,1753021817249,-208.33294145,0.00034831,30]
[373489936,1753021817315,-2773.78120299,0.00034831,30]
[373489937,1753021817379,-61079.0513372,0.00034831,30]
[373489938,1753021817443,-2397.2445043,0.00034831,30]
[373489939,1753021817520,-506992.84962248,0.00034831,30]
[373489940,1753021817592,-7080.09773816,0.00034831,30]
[373489941,1753021817664,-39614.1120439,0.00034831,30]
[373489942,1753021817740,-1282.52575764,0.00034831,30]
[373489943,1753021817814,-2263.36458585,0.00034831,30]
[373489944,1753021817885,-20278.32405831,0.00034831,30]
[373489945,1753021817955,-1907.10574887,0.00034831,55]
[373489946,1753021818020,-173.64107702,0.00034831,30]
[373489947,1753021818090,-12985.5627831,0.00034831,30]
[373489948,1753021818158,-2556.95139784,0.00034831,30]
[373489949,1753021818229,-3000.0,0.00034831,31]
[373489950,1753021818297,-5050.0,0.00034831,35]
[373489951,1753021818366,-18727.2533113,0.00034831,30]
[373489952,1753021818433,-1544.47823865,0.00034831,30]
[373489953,1753021818501,-98044.0,0.00034831,30]
[373489954,1753021818566,-157.47587245,0.00034831,30]
[373489955,1753021818630,-161.5978098,0.00034831,30]
[373489956,1753021818695,-265.5960906,0.00034831,30]
[373489957,1753021818762,-6699.75850112,0.00034831,30]
[373489958,1753021818831,-50000.0,0.00034831,30]
[373489959,1753021818899,-50000.0,0.00034831,31]
[373489960,1753021818969,-50000.0,0.00034831,32]
[373489961,1753021819040,-50000.0,0.00034831,33]
[373489962,1753021819111,-50000.0,0.00034831,34]
[373489963,1753021819180,-10923.22,0.00034831,30]
[373489964,1753021819255,-50000.0,0.00034831,35]
[373489965,1753021819326,-50000.0,0.00034831,36]
[373489966,1753021819394,-50000.0,0.00034831,37]
[373489967,1753021819460,-50000.0,0.00034831,38]
[373489968,1753021819532,-50000.0,0.00034831,39]
[373489969,1753021819594,-1028.864508,0.00034831,30]
[373489970,1753021819656,-1000.0,0.00034831,30]
[373489971,1753021819722,-1000.0,0.00034831,30]
[373489972,1753021819786,-10000.0,0.00034831,30]
[373489973,1753021819850,-5050.0,0.00034831,31]
[373489974,1753021819913,-5050.0,0.00034831,34]
[373489975,1753021819980,-936.8,0.00034831,30]
[373489976,1753021820050,-936.8,0.00034831,30]
[373489977,1753021820115,-871.42653089,0.00034831,30]
[373489978,1753021820181,-779.0,0.00034831,30]
[373489979,1753021820244,-699.60689053,0.00034831,30]
[373489980,1753021820310,-358.0,0.00034831,120]
[373489981,1753021820374,-570.0,0.00034831,120]
[373489982,1753021820432,-303.0,0.00034831,120]
[373489983,1753021820492,-500.0,0.00034831,120]
[373489984,1753021820551,-500.0,0.00034831,120]
[373489985,1753021820609,-500.0,0.00034831,120]
[373489986,1753021820670,-500.0,0.00034831,120]
[373489987,1753021820730,-500.0,0.00034831,120]
[373489988,1753021820790,-500.0,0.00034831,120]
[373489989,1753021820850,-3000.0,0.00034831,120]
[373489990,1753021820909,-3000.0,0.00034831,120]
[373489991,1753021820967,-354.0,0.00034831,120]
[373489992,1753021821028,-500.0,0.00034831,120]
[373489993,1753021821092,-331.63309492,0.00034831,120]
[373489994,1753021821150,-3000.0,0.00034831,120]
[373489995,1753021821207,-1000.0,0.00034831,60]
[373489996,1753021821266,-936.799999,0.00034831,60]
[373489997,1753021821324,-1000.0,0.00034831,90]
[373489998,1753021821382,-936.799999,0.00034831,90]
[373489999,1753021821445,-1000.0,0.00034831,120]
[373490000,1753021821506,-936.799999,0.00034831,120]
[373490001,1753021821565,-910.78317132,0.00034831,60]
[373490002,1753021821634,-1935.0,0.00034831,60]
[373490003,1753021821706,-1935.0,0.00034831,60]
[373490004,1753021821773,-1935.0,0.00034831,60]
[373490005,1753021821842,-1935.0,0.00034831,60]
[373490006,1753021821911,-1938.0,0.00034831,60]
[373490007,1753021821979,-1935.0,0.00034831,60]
[373490008,1753021822047,-403.0,0.00034831,60]
[373490009,1753021822112,-403.0,0.00034831,60]
[373490010,1753021822180,-2351.0,0.00034831,60]
[373490011,1753021822248,-2361.0,0.00034831,60]
[373490012,1753021822316,-2351.0,0.00034831,60]
[373490013,1753021822382,-2351.0,0.00034831,60]
[373490014,1753021822447,-2351.0,0.00034831,60]
[373490015,1753021822515,-2351.0,0.00034831,60]
[373490016,1753021822581,-2351.0,0.00034831,60]
[373490017,1753021822646,-2351.0,0.00034831,60]
[373490018,1753021822716,-2351.0,0.00034831,60]
[373490019,1753021822785,-2351.0,0.00034831,60]
[373490020,1753021822853,-2351.0,0.00034831,60]
[373490021,1753021822919,-2351.0,0.00034831,60]
[373490022,1753021822990,-2351.0,0.00034831,60]
[373490023,1753021823062,-2351.0,0.00034831,60]
[373490024,1753021823133,-2351.0,0.00034831,60]
[373490025,1753021823200,-2351.0,0.00034831,60]
[373490026,1753021823271,-2351.0,0.00034831,60]
[373490027,1753021823334,-509.30825984,0.00034831,120]
[373490028,1753021823397,-481.60105164,0.00034831,120]
[373490029,1753021823463,-556.15,0.00034831,120]
[373490030,1753021823532,-556.15,0.00034831,120]
[373490031,1753021823598,-556.15,0.00034831,120]
[373490032,1753021823665,-556.15,0.00034831,120]
[373490033,1753021823734,-556.15,0.00034831,120]
[373490034,1753021823804,-556.15,0.00034831,120]
[373490035,1753021823873,-556.15,0.00034831,120]
[373490036,1753021823942,-556.15,0.00034831,120]
[373490037,1753021824013,-556.15,0.00034831,120]
[373490038,1753021824082,-556.15,0.00034831,120]
[373490039,1753021824150,-556.15,0.00034831,120]
[373490040,1753021824220,-556.15,0.00034831,120]
[373490041,1753021824292,-556.15,0.00034831,120]
[373490043,1753021824361,-556.15,0.00034831,120]
[373490044,1753021824432,-556.15,0.00034831,120]
[373490045,1753021824504,-556.15,0.00034831,120]
[373490046,1753021824572,-556.15,0.00034831,120]
[373490047,1753021824639,-556.15,0.00034831,120]
[373490048,1753021824707,-556.15,0.00034831,120]
[373490049,1753021824773,-556.15,0.00034831,120]
[373490050,1753021824838,-556.15,0.00034831,120]
[373490051,1753021824907,-556.15,0.00034831,120]
[373490052,1753021824976,-556.15,0.00034831,120]
[373490053,1753021825052,-556.3495342,0.00034831,120]
[373490054,1753021825121,-152.26096716,0.00034831,120]
[373490055,1753021825187,-161.02434648,0.00034831,120]
[373490056,1753021825255,-3664.0,0.00034831,120]
[373490057,1753021825320,-360.5811508,0.00034831,120]
[373490058,1753021825384,-21177.43872497,0.00034831,30]
[373490059,1753021825450,-1318.0,0.00034831,120]
[373490060,1753021825517,-101876.1185222,0.00034831,120]
[373490061,1753021825583,-777.8,0.00034831,120]
[373490062,1753021825650,-363.95951297,0.00034831,90]
[373490063,1753021825713,-663.0,0.00034831,120]
[373490064,1753021825776,-1837.38667747,0.00034831,90]
[373490065,1753021825838,-613.65087863,0.00034831,120]
[373490066,1753021825901,-2894.24122,0.00034831,120]
[373490067,1753021825962,-356.83779142,0.00034831,120]
[373490068,1753021826025,-2830.89384382,0.00034831,120]
[373490069,1753021826088,-2437.40261322,0.00034831,120]
[373490070,1753021826150,-1241.82237666,0.00034831,120]
[373490071,1753021826212,-2360.0,0.00034831,120]
[373490072,1753021826277,-159.05474077,0.00034831,120]
[373490073,1753021826341,-454.51312158,0.00034831,60]
[373490074,1753021826405,-2621.66184419,0.00034831,120]
[373490075,1753021826472,-471.00357931,0.00034831,90]
[373490076,1753021826536,-911.97234121,0.00034831,120]
[373490077,1753021826598,-281.4277066,0.00034831,120]
[373490078,1753021826663,-1676.30148662,0.00034831,120]
[373490079,1753021826729,-1946.54812466,0.00034831,120]
[373490080,1753021826797,-153.53603088,0.00034831,120]
[373490081,1753021826864,-275.8776773,0.00034831,120]
[373490082,1753021826930,-1564.80445996,0.00034831,120]
[373490083,1753021826996,-784.48575561,0.00034831,120]
[373490084,1753021827063,-361.99941859,0.00034831,120]
[373490085,1753021827129,-3265.90454658,0.00034831,120]
[373490086,1753021827194,-866.11934357,0.00034831,120]
[373490087,1753021827260,-917.74110236,0.00034831,120]
[373490088,1753021827327,-363.54104748,0.00034831,120]
[373490089,1753021827391,-1000.77044764,0.00034831,120]
[373490090,1753021827452,-496.74882873,0.00034831,120]
[373490091,1753021827514,-303647.17893521,0.00034831,120]
[373490092,1753021827576,-213.02456517,0.00034831,120]
[373490093,1753021828458,-1081.44213336,0.00034831,120]
[373490094,1753021828570,-772.03248884,0.00034831,120]
[373490095,1753021828628,-198.61134027,0.00034831,120]
[373490096,1753021828687,-2232.83413423,0.00034831,120]
[373490097,1753021828746,-243.9284283,0.00034831,120]
[373490098,1753021828809,-3540.67105177,0.00034831,60]
[373490099,1753021828870,-625.15329193,0.00034831,120]
[373490100,1753021828930,-1229.84585797,0.00034831,120]
[373490101,1753021828994,-3074.76871927,0.00034831,120]
[373490102,1753021829057,-501.14100592,0.00034831,120]
[373490103,1753021829118,-3079.35246317,0.00034831,120]
[373490104,1753021829180,-2771.70809451,0.00034831,120]
[373490105,1753021829242,-1163.33923742,0.00034831,120]
[373490106,1753021829305,-435.45733579,0.00034831,120]
[373490107,1753021829365,-671.40885882,0.00034831,120]
[373490108,1753021829426,-240.02156617,0.00034831,120]
[373490109,1753021829487,-401.25538333,0.00034831,120]
[373490110,1753021829551,-2500.85239797,0.00034831,120]
[373490111,1753021829615,-211.13051909,0.00034831,120]
[373490112,1753021829678,-3156.45219869,0.00034831,120]
[373490113,1753021829746,-1922.71027481,0.00034831,120]
[373490114,1753021829810,-1791.99917927,0.00034831,120]
[373490115,1753021829875,-1339.67163892,0.00034831,120]
[373490116,1753021829938,-1273.11796429,0.00034831,120]
[373490117,1753021830001,-299.94307219,0.00034831,120]
[373490118,1753021830069,-646.60795619,0.00034831,60]
[373490119,1753021830133,-6053.0,0.00034831,60]
[373490120,1753021830195,-452.433344,0.00034831,60]
[373490121,1753021830267,-5050.0,0.00034831,36]
[373490122,1753021830333,-5050.0,0.00034831,37]
[373490123,1753021830397,-2043462.73403565,0.00034831,60]
[373490230,1753021835681,-29.68016696,0.00017234,2]
[373490231,1753021835691,-300.0,0.00017564,2]
[373490232,1753021835701,-200.5555511,0.00017564,2]
[373490233,1753021835714,-799.4444489,0.00017564,2]
[373490234,1753021835724,-248.336732,0.00017895,2]
[373490235,1753021835734,-250.0,0.00017927,2]
[373490236,1753021835743,-509.0,0.00018,2]
[373490237,1753021835753,-66.65794952,0.00018031,2]
[373490238,1753021835764,-107.54205048,0.00018031,2]
[373490239,1753021835774,-167.75,0.00018141,2]
[373490240,1753021835784,-500.0,0.0001834,2]
[373490241,1753021835793,-152.99,0.00018358,2]
[373490242,1753021835803,-167.22,0.0001838,2]
[373490243,1753021835813,-152.99,0.00018389,2]
[373490244,1753021835823,-152.99,0.0001842,2]
[373490245,1753021835832,-152.99,0.0001845,2]
[373490246,1753021835841,-152.99,0.00018481,2]
[373490247,1753021835851,-152.99,0.00018511,2]
[373490248,1753021835861,-742.51908666,0.00018519,2]
[373490249,1753021835871,-152.99,0.00018542,2]
[373490250,1753021835880,-300.0,0.00018564,2]
[373490251,1753021835889,-1200.0,0.00018564,2]
[373490252,1753021835899,-6009.87574679,0.00018565,2]
[373490253,1753021835908,-19640.27124762,0.00018609,2]
[373490254,1753021835918,-594.78135445,0.00018612,2]
[373490255,1753021835928,-850.0,0.00018628,2]
[373490256,1753021835937,-151.0,0.00018629,2]
[373490257,1753021835947,-600.0,0.00018629,2]
[373490258,1753021835956,-231.28369723,0.00018629,2]
[373490259,1753021835966,-500.0,0.00018629,2]
[373490260,1753021835976,-500.0,0.00018629,2]
[373490261,1753021835986,-500.0,0.00018629,2]
[373490262,1753021835996,-500.0,0.00018629,2]
[373490263,1753021836007,-500.0,0.00018629,2]
[373490264,1753021836017,-500.0,0.00018629,2]
[373490265,1753021836026,-500.0,0.00018629,2]
[373490266,1753021836036,-500.0,0.00018629,2]
[373490267,1753021836047,-500.0,0.00018629,2]
[373490268,1753021836058,-500.0,0.00018629,2]
[373490269,1753021836068,-500.0,0.00018629,2]
[373490270,1753021836078,-606.34122927,0.00018629,2]
[373490271,1753021836089,-151.0,0.00018629,2]
[373490272,1753021836099,-160.0,0.00018629,2]
[373490273,1753021836109,-151.0,0.00018629,2]
[373490274,1753021836120,-151.0,0.00018629,2]
[373490275,1753021836130,-151.0,0.00018629,2]
[373490276,1753021836140,-151.0,0.00018629,2]
[373490277,1753021836150,-151.0,0.00018629,2]